bitfinex-derivatives/quotes_SOLF0:USTF0_20250425
["timestamp","ask_amount","ask_price","bid_price","bid_amount"]
[1745540690394,23.74,152.43,152.41,6.5584]
[1745540690590,23.74,152.43,152.41,5.72622108]
[1745540691994,23.74,152.43,152.42,6.558]
[1745540692490,23.74,152.43,152.41,12.28452108]
[1745540692794,23.74,152.43,152.39,5.72622108]
[1745540693094,5.72622108,152.42,152.38,6.5596]
[1745540693497,5.72622108,152.42,152.37,5.72622108]
[1745540693898,6.5585,152.41,152.37,12.28612108]
[1745540695300,5.72622108,152.38,152.27,13.129]
[1745540695500,5.72622108,152.35,152.28,5.8989]
[1745540695700,5.72622108,152.34,152.33,6.5619]
[1745540696102,5.72622108,152.35,152.31,5.72622108]
[1745540696303,5.72622108,152.35,152.33,6.5617]
[1745540698001,5.72622108,152.35,152.34,6.5615]
[1745540698202,23.74,152.36,152.34,6.5615]
[1745540698503,23.74,152.36,152.31,5.72622108]
[1745540699298,23.74,152.36,152.33,6.5617]
[1745540702604,5.72622108,152.35,152.31,12.28872108]
[1745540702805,5.72622108,152.33,152.31,6.5625]
[1745540703001,5.72622108,152.33,152.29,5.72622108]
[1745540703201,23.74,152.32,152.29,5.72622108]
[1745540703701,23.74,152.32,152.27,1.9506]
[1745540703702,5.72622108,152.31,152.27,1.9506]
[1745540704004,5.72622108,152.31,152.27,7.67682108]
[1745540704605,23.74,152.32,152.29,5.72622108]
[1745540705004,23.74,152.32,152.31,6.5627]
[1745540708608,23.74,152.32,152.31,12.28892108]
[1745540708804,29.46622108,152.35,152.33,6.5618]
[1745540709309,23.74,152.35,152.33,6.5618]
[1745540709706,23.74,152.35,152.34,6.5615]
[1745540709903,23.74,152.39,152.33,5.72622108]
[1745540710102,23.74,152.39,152.38,5.72622108]
[1745540710308,23.74,152.42,152.4,6.5585]
[1745540710509,23.74,152.42,152.4,12.28472108]
[1745540711310,23.74,152.42,152.4,6.5585]
[1745540711511,23.74,152.42,152.37,8.95247116]
[1745540712012,23.74,152.42,152.4,6.5587]
[1745540712310,23.74,152.42,152.37,8.95247116]
[1745540713011,23.74,152.42,152.39,6.5592]
[1745540714109,30.298,152.42,152.37,8.95247116]
[1745540714613,30.298,152.42,152.37,15.51237116]
[1745540715917,23.74,152.42,152.37,8.95247116]
[1745540717114,23.74,152.42,152.35,8.95247116]
[1745540717508,30.2981,152.42,152.37,6.5601]
[1745540717814,30.2981,152.42,152.35,8.95247116]
[1745540718214,30.2981,152.42,152.37,6.5601]
[1745540718616,30.2981,152.42,152.34,5.9449]
[1745540718916,30.2981,152.42,152.36,8.95247116]
[1745540719411,30.2981,152.42,152.38,6.5595]
[1745540719714,23.74,152.42,152.38,6.5595]
[1745540721518,30.2981,152.42,152.38,6.5595]
[1745540722916,23.74,152.42,152.38,6.5595]
[1745540723313,8.95247116,152.41,152.34,1.9882]
[1745540723518,6.5602,152.37,152.3,8.95247116]
[1745540723718,23.74,152.36,152.3,8.95247116]
[1745540724121,23.74,152.36,152.33,6.5616]
[1745540724516,23.74,152.36,152.3,8.95247116]
[1745540725210,23.74,152.36,152.33,6.5615]
[1745540725414,23.74,152.36,152.3,8.95247116]
[1745540725918,23.74,152.36,152.35,6.561]
[1745540726219,23.74,152.39,152.32,8.95247116]
[1745540726412,23.74,152.39,152.34,8.95247116]
[1745540726613,23.74,152.39,152.35,1.9913]
[1745540728521,23.74,152.39,152.37,6.56]
[1745540729123,23.74,152.39,152.38,6.5597]
[1745540732325,23.74,152.39,152.37,6.56]
[1745540733026,23.74,152.39,152.35,1.9913]
[1745540733225,23.74,152.39,152.32,8.95247116]
[1745540733427,29.47364363,152.39,152.34,5.73364363]
[1745540733626,36.03324363,152.39,152.35,6.5609]
[1745540735225,29.47364363,152.39,152.34,5.73364363]
[1745540735927,23.74,152.39,152.36,5.73364363]
[1745540736125,23.74,152.39,152.37,6.5599]
[1745540742634,23.74,152.39,152.36,12.29414363]
[1745540744327,36.03324363,152.39,152.34,5.73364363]
[1745540744630,29.47364363,152.39,152.34,5.73364363]
[1745540745028,6.56,152.38,152.34,12.29474363]
[1745540745226,29.47364363,152.39,152.34,5.73364363]
[1745540745428,5.73364363,152.37,152.32,5.73364363]
[1745540745732,12.29394363,152.37,152.33,6.5615]
[1745540746030,5.73364363,152.37,152.32,5.73364363]
[1745540746227,5.73364363,152.37,152.3,2.0072]
[1745540746531,5.73364363,152.37,152.32,5.73364363]
[1745540748330,5.73364363,152.35,152.3,7.74084363]
[1745540748530,29.47364363,152.35,152.3,7.74084363]
[1745540748930,6.5616,152.34,152.3,14.30364363]
[1745540749132,5.73364363,152.33,152.3,6.5628]
[1745540750835,5.73364363,152.33,152.31,6.5627]
[1745540751037,5.73364363,152.33,152.28,5.73364363]
[1745540751238,5.73364363,152.33,152.24,23.74]
[1745540751440,5.73364363,152.33,152.28,5.73364363]
[1745540751843,5.73364363,152.33,152.29,6.5632]
[1745540752141,5.73364363,152.33,152.28,5.73364363]
[1745540752440,5.73364363,152.31,152.27,6.5641]
[1745540752640,29.47364363,152.31,152.27,6.5641]
[1745540753044,36.03664363,152.31,152.27,6.5641]
[1745540753343,5.73364363,152.29,152.25,6.5649]
[1745540753742,23.74,152.31,152.24,6.5657]
[1745540753743,5.73364363,152.27,152.24,6.5657]
[1745540754045,5.73364363,152.25,152.2,5.73364363]
[1745540754445,5.73364363,152.25,152.21,6.5668]
[1745540755346,15.54117193,152.26,152.21,6.5668]
[1745540755843,8.97617193,152.26,152.22,6.5666]
[1745540758047,8.97617193,152.26,152.23,6.5662]
[1745540760142,23.74,152.27,152.19,8.97617193]
[1745540760602,23.74,152.27,152.21,8.97617193]
[1745540761080,23.74,152.27,152.23,6.566]
[1745540761386,23.74,152.27,152.17,8.97617193]
[1745540761785,30.3048,152.27,152.22,6.5665]
[1745540762382,8.97617193,152.26,152.2,6.5671]
[1745540762578,8.97617193,152.26,152.17,8.97617193]
[1745540763082,15.54117193,152.26,152.17,8.97617193]
[1745540763587,15.54117193,152.26,152.21,6.5667]
[1745540763879,6.5655,152.25,152.21,6.5667]
[1745540764183,6.5655,152.25,152.22,6.5666]
[1745540764487,6.5655,152.25,152.17,8.97617193]
[1745540764885,6.5655,152.25,152.21,6.5668]
[1745540765079,6.5655,152.25,152.17,8.97617193]
[1745540766086,15.54117193,152.26,152.17,8.97617193]
[1745540766278,23.74,152.27,152.21,8.97617193]
[1745540766473,23.74,152.27,152.23,8.97617193]
[1745540766776,23.74,152.27,152.26,6.5649]
[1745540772056,23.74,152.3,152.29,6.5633]
[1745540773753,23.74,152.3,152.28,6.5639]
[1745540777054,23.74,152.3,152.27,12.30360442]
[1745540777251,5.73920442,152.29,152.25,5.73920442]
[1745540777754,5.73920442,152.29,152.23,5.73920442]
[1745540778058,6.5641,152.28,152.24,6.5655]
[1745540778256,6.5641,152.28,152.23,5.73920442]
[1745540779053,12.30290442,152.29,152.23,5.73920442]
[1745540779254,5.73920442,152.29,152.23,5.73920442]
[1745540780350,5.73920442,152.29,152.26,6.5649]
[1745540782357,12.30290442,152.29,152.25,6.5652]
[1745540782765,5.73920442,152.29,152.23,5.73920442]
[1745540783565,12.30290442,152.29,152.25,6.5653]
[1745540784665,6.5642,152.28,152.24,6.5656]
[1745540784962,5.73920442,152.27,152.22,1.8821]
[1745540785162,5.73920442,152.25,152.22,1.8821]
[1745540785865,5.73920442,152.25,152.22,8.4484]
[1745540787162,23.74,152.26,152.22,7.62130442]
[1745540788069,23.74,152.26,152.23,6.5659]
[1745540790067,23.74,152.26,152.24,6.5657]
[1745540791969,23.74,152.26,152.25,6.5653]
[1745540793768,23.74,152.29,152.27,6.5643]
[1745540794375,29.47920442,152.29,152.26,6.5649]
[1745540794571,29.47920442,152.29,152.24,5.73920442]
[1745540795870,36.04300442,152.29,152.25,6.5652]
[1745540797272,6.5642,152.28,152.24,12.30490442]
[1745540798071,36.04290442,152.29,152.25,6.5652]
[1745540806179,23.74,152.29,152.24,5.73920442]
[1745540807078,23.74,152.29,152.27,6.5642]
[1745540810579,23.74,152.29,152.28,12.30320442]
[1745540812475,23.74,152.29,152.28,5.73920442]
[1745540814183,23.74,152.33,152.32,6.5623]
[1745540814384,23.74,152.33,152.32,12.30150442]
[1745540814682,23.74,152.36,152.32,5.73920442]
[1745540814881,23.74,152.36,152.35,6.561]
[1745540815081,92.36320879,152.42,152.34,5.73920442]
[1745540815082,23.74,152.39,152.34,5.73920442]
[1745540815280,23.74,152.39,152.37,5.73920442]
[1745540815974,29.47920442,152.39,152.35,5.73920442]
[1745540816682,23.74,152.39,152.37,5.73920442]
[1745540819279,23.74,152.39,152.37,12.29940442]
[1745540819980,23.74,152.39,152.37,5.73920442]
[1745540820985,23.74,152.39,152.35,5.73920442]
[1745540821186,23.72,152.45,152.37,5.73920442]
[1745540821384,23.72,152.46,152.44,5.73920442]
[1745540821585,5.73920442,152.51,152.44,5.73920442]
[1745540821886,23.72,152.52,152.47,5.73920442]
[1745540822779,23.72,152.52,152.49,5.73920442]
[1745540823379,23.72,152.52,152.47,8.94100256]
[1745540826186,23.72,152.52,152.47,15.49680256]
[1745540828590,23.7,152.56,152.51,8.94100256]
[1745540828990,23.7,152.56,152.48,8.94100256]
[1745540829192,23.7,152.56,152.53,8.94100256]
[1745540829385,23.7,152.59,152.54,1.9991]
[1745540830292,30.2507,152.59,152.54,1.9991]
[1745540833300,23.7,152.59,152.54,8.5518]
[1745540834100,23.7,152.59,152.54,1.9991]
[1745540834298,23.7,152.59,152.51,23.7]
[1745540834497,32.64100256,152.59,152.5,10.81000256]
[1745540834698,6.5524,152.55,152.5,10.81000256]
[1745540834901,6.5524,152.55,152.5,17.36420256]
[1745540835201,6.553,152.54,152.5,10.81000256]
[1745540835500,6.553,152.54,152.5,17.36450256]
[1745540837204,23.7,152.55,152.5,1.869]
[1745540837500,23.7,152.54,152.46,389.66390256]
[1745540838604,23.7,152.54,152.48,8.94100256]
[1745540838903,23.7,152.54,152.49,1.9214]
[1745540839204,30.2529,152.54,152.49,8.4761]
[1745540839699,6.5533,152.53,152.49,1.9214]
[1745540840505,30.253,152.54,152.49,8.4763]
[1745540841000,23.7,152.54,152.49,8.4763]
[1745540841201,23.7,152.54,152.5,6.5546]
[1745540842903,23.7,152.54,152.51,6.5541]
[1745540844605,23.7,152.54,152.52,6.5534]
[1745540844806,23.7,152.54,152.5,8.94100256]
[1745540845002,23.68,152.57,152.52,8.94100256]
[1745540845202,23.68,152.57,152.56,6.552]
[1745540845700,23.68,152.6,152.56,6.552]
[1745540846506,30.2305,152.6,152.56,6.552]
[1745540847409,23.68,152.6,152.57,6.5515]
[1745540849007,23.68,152.6,152.56,6.5519]
[1745540849506,23.68,152.6,152.57,6.5515]
[1745540849909,30.2303,152.6,152.56,6.552]
[1745540850509,23.68,152.6,152.57,6.5514]
[1745540851509,23.68,152.6,152.58,6.551]
[1745540852008,23.68,152.6,152.55,1.9697]
[1745540852410,23.68,152.6,152.59,6.5507]
[1745540853311,23.68,152.6,152.52,8.94100256]
[1745540853707,30.2305,152.6,152.52,8.94100256]
[1745540854209,23.68,152.6,152.52,8.94100256]
[1745540854409,6.5507,152.59,152.55,6.5521]
[1745540854611,6.5507,152.59,152.52,8.94100256]
[1745540855112,6.5507,152.59,152.55,6.5522]
[1745540855611,6.5507,152.59,152.56,6.552]
[1745540857513,30.2304,152.6,152.56,6.552]
[1745540858711,23.68,152.6,152.52,8.94100256]
[1745540859109,23.68,152.6,152.54,8.94100256]
[1745540859811,23.68,152.6,152.57,6.5515]
[1745540860515,23.68,152.6,152.58,6.5509]
[1745540862415,23.68,152.6,152.57,6.5514]
[1745540862614,32.62100256,152.6,152.52,1.8494]
[1745540863017,6.5514,152.58,152.54,6.5526]
[1745540863510,32.62100256,152.6,152.52,6.5534]
[1745540865323,6.552,152.57,152.52,6.5534]
[1745540865524,23.68,152.56,152.52,6.5534]
[1745540865725,23.68,152.56,152.53,6.5532]
[1745540867630,30.232,152.56,152.52,6.5536]
[1745540869130,23.68,152.56,152.49,23.68]
[1745540869531,23.68,152.56,152.53,6.5531]
[1745540870131,23.68,152.56,152.54,6.5528]
[1745540870733,23.68,152.56,152.53,6.5532]
[1745540870927,23.68,152.56,152.52,8.94100256]
[1745540872126,23.68,152.56,152.54,6.5525]
[1745540873930,23.68,152.56,152.55,6.5524]
[1745540874532,23.68,152.56,152.54,6.5527]
[1745540876534,6.5511,152.58,152.54,6.5527]
[1745540876729,23.68,152.67,152.57,5.71893064]
[1745540876940,23.68,152.67,152.64,5.71893064]
[1745540877129,23.68,152.67,152.66,5.71893064]
[1745540877330,23.68,152.67,152.64,5.71893064]
[1745540878136,29.39893064,152.67,152.56,1.919]
[1745540878341,23.68,152.67,152.64,5.71893064]
[1745540878538,23.68,152.67,152.65,1.63756356]
[1745540878730,30.2273,152.67,152.66,1.63756356]
[1745540879434,6.5478,152.66,152.6,15.47569396]
[1745540880637,23.68,152.67,152.6,8.92549396]
[1745540880937,8.92549396,152.66,152.59,6.5506]
[1745540881342,6.5489,152.64,152.58,6.5511]
[1745540881535,23.68,152.63,152.58,6.5511]
[1745540882438,30.2291,152.63,152.58,6.5511]
[1745540883538,6.5494,152.62,152.58,6.5511]
[1745540883839,23.68,152.63,152.57,15.47699396]
[1745540884137,6.5495,152.62,152.57,15.47699396]
[1745540884341,6.5495,152.62,152.58,6.5511]
[1745540884728,6.5495,152.62,152.57,8.92549396]
[1745540886339,6.5495,152.62,152.58,6.5511]
[1745540886734,6.55,152.61,152.57,15.47689396]
[1745540888337,8.92549396,152.62,152.54,27.6838]
[1745540888542,8.92549396,152.6,152.54,1.9861]
[1745540888743,23.68,152.59,152.54,1.9861]
[1745540891344,23.68,152.59,152.55,1.63832685]
[1745540891541,23.68,152.59,152.56,1.63832685]
[1745540891744,30.231,152.59,152.57,1.63832685]
[1745540891947,30.231,152.59,152.58,1.63832685]
[1745540893545,23.68,152.59,152.58,1.63832685]
[1745540895650,23.68,152.62,152.58,1.63832685]
[1745540895851,23.68,152.62,152.59,1.63832685]
[1745540896046,23.68,152.62,152.61,6.5498]
[1745540896241,495.5,152.65,152.61,1.63832685]
[1745540896445,23.68,152.65,152.62,1.63832685]
[1745540896642,23.68,152.65,152.63,1.63832685]
[1745540896842,23.68,152.65,152.64,8.18692685]
[1745540897852,23.68,152.65,152.64,8.18621581]
[1745540898353,23.68,152.65,152.64,1.63761581]
[1745540901455,23.68,152.65,152.64,1.637542]
[1745540905656,30.2281,152.65,152.64,1.637542]
[1745540907457,30.2281,152.65,152.61,6.5495]
[1745540907661,23.68,152.65,152.62,6.5494]
[1745540908857,30.2281,152.65,152.62,6.5494]
[1745540909054,30.2281,152.65,152.61,6.5498]
[1745540909252,30.2281,152.65,152.61,12.26308165]
[1745540910358,30.2281,152.65,152.62,6.5494]
[1745540912157,23.68,152.65,152.62,6.5494]
[1745540912453,23.68,152.65,152.63,6.5487]
[1745540912656,23.68,152.65,152.63,5.71328165]
[1745540913358,23.68,152.65,152.63,12.26198165]
[1745540914459,23.68,152.65,152.64,6.5486]
[1745540916763,6.5473,152.67,152.64,6.5486]
[1745540917061,23.66,152.66,152.64,6.5486]
[1745540918162,23.66,152.66,152.63,12.26218165]
[1745540918462,23.66,152.66,152.63,5.71328165]
[1745540918662,23.66,152.66,152.63,12.26198165]
[1745540918963,29.37328165,152.66,152.63,12.26198165]
[1745540919262,29.37328165,152.66,152.63,5.71328165]
[1745540920362,29.37328165,152.66,152.64,6.5485]
[1745540922865,23.66,152.66,152.64,6.5485]
[1745540925062,6.5481,152.65,152.58,6.551]
[1745540925265,12.26138165,152.65,152.6,5.71328165]
[1745540925867,5.71328165,152.63,152.58,5.71328165]
[1745540926067,23.66,152.62,152.58,5.71328165]
[1745540926569,30.2095,152.62,152.58,12.26418165]
[1745540926765,23.66,152.62,152.58,5.71328165]
[1745540926966,12.26348165,152.61,152.56,6.5517]
[1745540927366,5.71328165,152.61,152.55,5.71328165]
[1745540927569,5.71328165,152.61,152.57,5.71328165]
[1745540927869,23.66,152.62,152.57,5.71328165]
[1745540928071,23.66,152.62,152.59,6.5506]
[1745540928666,23.66,152.62,152.6,6.5502]
[1745540929171,23.66,152.62,152.57,5.71328165]
[1745540929370,23.66,152.62,152.61,6.5498]
[1745540929561,1.9012,152.69,152.61,5.71328165]
[1745540929763,1.9012,152.69,152.63,5.71328165]
[1745540929764,29.37328165,152.68,152.63,5.71328165]
[1745540930067,35.92038165,152.68,152.64,6.5483]
[1745540930673,6.5473,152.67,152.64,6.5483]
[1745540931371,6.5473,152.67,152.63,12.26208165]
[1745540931569,12.26118165,152.66,152.61,5.71328165]
[1745540932169,5.71328165,152.66,152.61,5.71328165]
[1745540932567,5.71328165,152.66,152.63,6.5487]
[1745540933470,23.66,152.68,152.64,6.5485]
[1745540933471,35.92028165,152.68,152.64,6.5485]
[1745540934173,6.5473,152.67,152.64,6.5485]
[1745540934773,35.92028165,152.68,152.64,6.5485]
[1745540936173,6.5473,152.67,152.63,12.26218165]
[1745540936373,29.37328165,152.68,152.63,6.5489]
[1745540937874,6.5474,152.67,152.64,6.5485]
[1745540938374,29.37328165,152.68,152.65,6.5481]
[1745540938674,29.37328165,152.68,152.62,5.71328165]
[1745540939076,35.92038165,152.68,152.64,6.5483]
[1745540940677,29.37328165,152.68,152.62,5.71328165]
[1745540940867,29.37328165,152.68,152.56,23.66]
[1745540940868,5.71328165,152.66,152.6,5.71328165]
[1745540941275,12.26188165,152.64,152.6,12.26328165]
[1745540941474,23.66,152.63,152.6,12.26328165]
[1745540941877,23.66,152.63,152.61,6.5498]
[1745540942678,23.66,152.63,152.62,6.5494]
[1745540943876,23.66,152.63,152.62,12.26268165]
[1745540944878,23.66,152.66,152.63,6.5486]
[1745540945078,23.66,152.66,152.62,5.71328165]
[1745540945282,23.66,152.66,152.63,6.5489]
[1745540946082,23.66,152.66,152.62,5.71328165]
[1745540946683,23.66,152.66,152.63,6.5487]
[1745540947182,23.66,152.66,152.63,6.5489]
[1745540947586,35.92128165,152.66,152.62,5.71328165]
[1745540948086,35.92128165,152.66,152.62,12.26248165]
[1745540948383,5.71328165,152.64,152.6,5.71328165]
[1745540948587,5.71328165,152.64,152.59,12.26388165]
[1745540948986,6.5492,152.63,152.59,5.71328165]
[1745540949183,23.66,152.62,152.6,6.5503]
[1745540949382,23.66,152.62,152.59,5.71328165]
[1745540949584,23.66,152.62,152.61,12.26308165]
[1745540949783,23.66,152.65,152.61,5.71328165]
[1745540949984,23.66,152.65,152.57,23.66]
[1745540949985,23.66,152.65,152.63,5.71328165]
[1745540950288,23.66,152.65,152.63,12.26228165]
[1745540952491,23.66,152.65,152.64,6.5486]
[1745540954896,23.66,152.65,152.63,5.71328165]
[1745540955696,23.66,152.65,152.63,12.26198165]
[1745540956397,23.66,152.65,152.63,5.71328165]
[1745540957097,30.2082,152.65,152.62,5.71328165]
[1745540959305,23.66,152.65,152.62,5.71328165]
[1745540960207,30.2082,152.65,152.62,5.71328165]
[1745540961910,6.5486,152.64,152.62,5.71328165]
[1745540962703,29.37328165,152.65,152.6,5.71328165]
[1745540963208,6.5494,152.62,152.59,5.71328165]
[1745540963511,29.37328165,152.61,152.56,5.71328165]
[1745540963910,6.551,152.59,152.56,5.71328165]
[1745540965010,29.37328165,152.61,152.56,5.71328165]
[1745540965607,29.37328165,152.61,152.56,12.26518165]
[1745540966107,6.5505,152.6,152.56,5.71328165]
[1745540966813,6.5509,152.59,152.56,5.71328165]
[1745540968514,6.5504,152.6,152.56,5.71328165]
[1745540968715,29.37328165,152.61,152.56,5.71328165]
[1745540969214,23.66,152.61,152.58,5.71328165]
[1745540969716,23.66,152.61,152.59,6.5507]
[1745540970017,23.66,152.61,152.58,5.71328165]
[1745540971913,35.92348165,152.61,152.57,6.5513]
[1745540972816,35.92348165,152.61,152.56,12.26508165]
[1745540973315,35.92348165,152.61,152.57,6.5515]
[1745540973813,35.92348165,152.61,152.58,6.5511]
[1745540974115,29.37328165,152.61,152.58,6.5511]
[1745540974315,29.37328165,152.61,152.56,5.71328165]
[1745540974515,35.92318165,152.61,152.57,6.5512]
[1745540975216,35.92318165,152.61,152.58,6.5511]
[1745540975613,23.66,152.61,152.58,5.71328165]
[1745540975919,23.66,152.61,152.6,12.26358165]
[1745540985320,23.66,152.62,152.6,5.71328165]
[1745540985521,23.66,152.64,152.61,5.71328165]
[1745540985820,23.66,152.64,152.63,12.26218165]
[1745540988828,23.66,152.64,152.63,5.71328165]
[1745540990024,23.66,152.64,152.63,12.26228165]
[1745540993426,23.66,152.64,152.62,6.5493]
[1745540993622,23.66,152.64,152.62,12.26258165]
[1745540994525,23.66,152.64,152.63,6.549]
[1745541000330,23.66,152.64,152.62,12.26248165]
[1745541000736,23.66,152.64,152.62,5.71328165]
[1745541001430,23.66,152.64,152.63,6.549]
[1745541003628,23.66,152.64,152.62,5.71328165]
[1745541004629,30.2086,152.64,152.62,5.71328165]
[1745541004925,29.37328165,152.64,152.6,5.71328165]
[1745541005133,6.5497,152.62,152.58,5.71328165]
[1745541005331,12.26298165,152.62,152.58,12.26418165]
[1745541005524,12.26298165,152.62,152.58,5.71328165]
[1745541005830,12.26298165,152.62,152.58,12.26428165]
[1745541006246,23.66,152.64,152.6,5.71328165]
[1745541006448,23.66,152.64,152.62,5.71328165]
[1745541008049,23.66,152.64,152.55,25.5173]
[1745541008050,23.66,152.64,152.6,5.71328165]
[1745541008440,29.37328165,152.64,152.59,5.71328165]
[1745541009036,29.37328165,152.64,152.59,12.26368165]
[1745541009235,29.37328165,152.64,152.59,5.71328165]
[1745541009537,29.37328165,152.64,152.6,6.55]
[1745541011238,35.92188165,152.64,152.6,6.55]
[1745541012038,29.37328165,152.64,152.6,6.55]
[1745541012939,29.37328165,152.64,152.61,6.5498]
[1745541014341,29.37328165,152.64,152.6,6.5501]
[1745541014537,29.37328165,152.64,152.6,12.26338165]
[1745541015141,23.66,152.64,152.62,5.71328165]
[1745541015937,23.66,152.64,152.63,6.549]
[1745541016138,23.66,152.64,152.62,5.71328165]
[1745541017044,23.66,152.64,152.62,12.26258165]
[1745541017344,23.66,152.64,152.62,5.71328165]
[1745541017744,23.66,152.64,152.63,6.549]
[1745541019448,23.66,152.64,152.62,12.26258165]
[1745541019650,23.66,152.64,152.62,5.71328165]
[1745541020743,23.66,152.64,152.61,5.71328165]
[1745541021149,29.37328165,152.64,152.59,5.71328165]
[1745541021350,35.92218165,152.64,152.6,6.5501]
[1745541021951,35.92218165,152.64,152.59,12.26388165]
[1745541022249,35.92218165,152.64,152.59,5.71328165]
[1745541022848,35.92218165,152.64,152.6,6.55]
[1745541023646,6.5491,152.63,152.59,5.71328165]
[1745541023950,6.5491,152.63,152.59,12.26388165]
[1745541024851,6.5499,152.61,152.56,360.71328165]
[1745541025051,23.64,152.6,152.56,5.71328165]
[1745541025349,23.64,152.6,152.57,6.5513]
[1745541025650,23.64,152.6,152.56,5.71328165]
[1745541025949,30.1903,152.6,152.56,5.71328165]
[1745541026652,30.1903,152.6,152.56,12.26498165]
[1745541027151,6.5511,152.59,152.55,12.26558165]
[1745541028750,5.71328165,152.58,152.54,5.71328165]
[1745541028950,5.71328165,152.58,152.53,5.71328165]
[1745541029250,6.5521,152.56,152.53,5.71328165]
[1745541029453,23.64,152.56,152.53,5.71328165]
[1745541030145,29.35328165,152.56,152.51,5.71328165]
[1745541030851,29.35328165,152.56,152.47,2.0292]
[1745541030852,23.64,152.56,152.53,5.71328165]
[1745541031252,30.1921,152.56,152.53,5.71328165]
[1745541031753,6.5525,152.55,152.53,5.71328165]
[1745541031952,6.5525,152.55,152.51,12.26728165]
[1745541032353,6.5531,152.54,152.51,5.71328165]
[1745541033156,6.5526,152.55,152.51,12.26738165]
[1745541034468,29.35328165,152.56,152.49,6.555]
[1745541034469,6.5532,152.54,152.49,6.555]
[1745541034755,6.5532,152.54,152.49,5.71328165]
[1745541034756,5.71328165,152.54,152.49,5.71328165]
[1745541035153,6.5534,152.53,152.49,5.71328165]
[1745541035357,23.64,152.52,152.49,5.71328165]
[1745541035954,23.64,152.52,152.49,12.26818165]
[1745541036158,30.1938,152.52,152.49,5.71328165]
[1745541036458,23.64,152.52,152.49,5.71328165]
[1745541036659,29.35328165,152.52,152.47,5.71328165]
[1745541037558,5.71328165,152.5,152.43,5.71328165]
[1745541038059,5.71328165,152.48,152.44,6.5569]
[1745541038257,23.66,152.47,152.43,5.71328165]
[1745541038561,23.66,152.47,152.43,12.27058165]
[1745541039260,23.66,152.47,152.43,6.5573]
[1745541039759,23.66,152.47,152.43,5.71328165]
[1745541041155,23.66,152.47,152.44,6.5571]
[1745541041457,23.66,152.47,152.43,5.71328165]
[1745541041752,23.66,152.47,152.45,6.5565]
[1745541041958,23.66,152.47,152.43,5.71328165]
[1745541042658,23.66,152.47,152.44,6.5569]
[1745541042957,23.66,152.47,152.43,5.71328165]
[1745541043259,23.66,152.47,152.45,6.5566]
[1745541043862,5.71328165,152.46,152.37,2.0073]
[1745541044160,5.71328165,152.38,152.33,5.71328165]
[1745541044355,23.66,152.37,152.33,5.71328165]
[1745541044757,23.66,152.37,152.33,12.27488165]
[1745541045961,23.66,152.37,152.34,6.5614]
[1745541047568,23.66,152.37,152.35,6.561]
[1745541047865,23.66,152.38,152.35,5.71328165]
[1745541048061,23.66,152.38,152.36,5.21062837]
[1745541049164,23.66,152.38,152.37,6.5602]
[1745541049369,495.74,152.42,152.36,5.21062837]
[1745541049667,495.74,152.42,152.33,23.66]
[1745541049668,23.66,152.42,152.41,5.21062837]
[1745541049871,23.66,152.42,152.41,11.76902837]
[1745541051469,23.66,152.42,152.41,6.5584]
[1745541052570,23.66,152.42,152.37,13.79528248]
[1745541053268,23.66,152.42,152.39,6.559]
[1745541053574,23.66,152.42,152.37,13.79528248]
[1745541054473,23.66,152.42,152.41,6.5584]
[1745541055174,23.66,152.42,152.4,6.5589]
[1745541056374,23.66,152.42,152.39,6.5592]
[1745541056574,31.79748248,152.42,152.33,363.13748248]
[1745541056773,31.79748248,152.42,152.33,1.8534]
[1745541056971,8.13748248,152.4,152.33,1.8534]